bitfinex-derivatives/quotes_ETHF0:USTF0_20251028
["timestamp","ask_amount","ask_price","bid_price","bid_amount"]
[1761612145741,1.32717785,4116.4,4116.3,1.69580256]
[1761612147046,1.11327785,4116.4,4116.3,2.00720256]
[1761612149046,1.32717785,4116.4,4116.3,1.69580256]
[1761612150342,0.7753,4115.6,4115.5,0.4489]
[1761612150548,1.32804816,4115.6,4115.5,0.2279]
[1761612150942,1.32804816,4115.6,4115.5,0.4489]
[1761612152045,0.55274816,4115.6,4115.5,0.7603]
[1761612153049,0.55274816,4115.6,4115.5,0.4489]
[1761612153050,1.32804816,4115.6,4115.5,0.4489]
[1761612153352,0.7753,4115.4,4115.3,4.3469]
[1761612153551,1.32804816,4115.4,4115.3,4.3469]
[1761612153756,1.32804816,4115.4,4115.3,4.6583]
[1761612154648,1.32818758,4115.4,4115.3,4.6583]
[1761612154848,1.32818758,4115.4,4115.3,0.7605]
[1761612155050,1.11428758,4115.4,4115.3,2.00740256]
[1761612155355,0.55288758,4115.4,4115.3,2.00740256]
[1761612156255,0.88328758,4115.4,4115.3,2.00740256]
[1761612156452,1.32858758,4115.4,4115.3,1.69580256]
[1761612158372,1.32858758,4115.4,4115.3,0.2279]
[1761612158650,0.4453,4114.6,4114.5,1.48075733]
[1761612158856,1.32867848,4114.6,4114.5,1.48075733]
[1761612160453,1.32867848,4114.6,4114.5,1.69855733]
[1761612160858,1.32867848,4114.6,4114.5,2.01015733]
[1761612161656,0.7757,4114.6,4114.5,2.01015733]
[1761612163554,0.552,4114.9,4114.6,0.3116]
[1761612163760,0.552,4114.9,4114.8,2.00700256]
[1761612163961,1.10486875,4114.9,4114.8,2.00700256]
[1761612164160,1.32856875,4114.9,4114.8,2.00700256]
[1761612164362,1.32856875,4114.9,4114.8,1.69540256]
[1761612167966,1.32856875,4114.9,4114.8,2.00700256]
[1761612168665,1.32856875,4114.9,4114.8,1.69540256]
[1761612173569,0.7757,4114.6,4114.5,1.48075733]
[1761612175168,0.7757,4114.6,4114.5,1.69855733]
[1761612180375,0.3304,4114.6,4114.5,2.01015733]
[1761612182069,1.32965064,4114.6,4114.5,1.48075733]
[1761612182373,1.32965064,4114.6,4114.5,1.69855733]
[1761612184677,1.32965064,4114.6,4114.5,0.45165477]
[1761612184977,1.32965064,4114.6,4114.5,1.69855733]
[1761612185774,0.88435064,4114.6,4114.5,2.00965733]
[1761612187384,0.55395064,4114.6,4114.5,2.13625733]
[1761612188685,0.55395064,4114.6,4114.5,6.03425733]
[1761612190185,0.87275064,4114.6,4114.5,6.03425733]
[1761612190384,0.87275064,4114.6,4114.5,5.90765733]
[1761612192079,0.55395064,4114.6,4114.5,5.90765733]
[1761612192988,0.55395064,4114.6,4114.5,6.03425733]
[1761612194090,0.55395064,4114.6,4114.5,2.13625733]
[1761612194289,0.55395064,4114.6,4114.5,2.00965733]
[1761612194290,0.87275064,4114.6,4114.5,2.00965733]
[1761612195388,1.08055064,4114.6,4114.5,2.00965733]
[1761612196590,0.55395064,4114.6,4114.5,2.00965733]
[1761612196790,0.55395064,4114.6,4114.5,2.13625733]
[1761612200193,1.08055064,4114.6,4114.5,2.00965733]
[1761612200594,1.29245064,4114.6,4114.5,1.69855733]
[1761612201793,1.29245064,4114.6,4114.5,1.48075733]
[1761612201999,1.29245064,4114.6,4114.5,0.00315477]
[1761612206212,1.29245064,4114.6,4114.5,1.68535733]
[1761612207711,1.29245064,4114.6,4114.5,1.47841733]
[1761612208108,1.29245064,4114.6,4114.5,1.78921733]
[1761612208308,1.08055064,4114.6,4114.5,1.78921733]
[1761612208509,1.29245064,4114.6,4114.5,1.47841733]
[1761612211012,2.16432593,4114.6,4114.5,1.47841733]
[1761612211209,1.29245064,4114.6,4114.5,1.47841733]
[1761612213015,1.29245064,4114.6,4114.5,1.04311733]
[1761612213516,1.29245064,4114.6,4114.5,1.26181733]
[1761612217419,1.29245064,4114.6,4114.5,1.80281733]
[1761612217619,0.87275064,4114.6,4114.5,1.80281733]
[1761612217820,1.32475064,4114.6,4114.5,1.80281733]
[1761612218312,1.32475064,4114.6,4114.5,1.49131733]
[1761612219216,1.32475064,4114.6,4114.5,1.80281733]
[1761612219723,1.32475064,4114.6,4114.5,1.49131733]
[1761612220221,1.32475064,4114.6,4114.5,1.80281733]
[1761612222625,1.10285064,4114.6,4114.5,1.80281733]
[1761612222827,0.55395064,4114.6,4114.5,6.17717989]
[1761612223414,0.87187529,4115.2,4114.6,0.3115]
[1761612223625,0.318,4115.2,4115.1,0.7518]
[1761612224326,0.318,4115.2,4115.1,1.79176256]
[1761612224919,0.5481,4115.2,4115.1,1.79176256]
[1761612225322,0.77,4115.2,4115.1,1.48026256]
[1761612226621,0.318,4115.2,4115.1,1.79176256]
[1761612226921,0.87187529,4115.7,4115.1,1.79176256]
[1761612226922,0.318,4115.7,4115.4,0.3115]
[1761612227227,0.77,4115.9,4115.8,0.2108]
[1761612227526,0.77,4115.9,4115.8,1.25076256]
[1761612227922,0.77,4115.9,4115.8,1.03996256]
[1761612228226,0.77,4115.9,4115.8,1.25076256]
[1761612229625,0.77,4115.9,4115.8,1.79176256]
[1761612231024,0.5481,4115.9,4115.8,1.79176256]
[1761612231329,0.318,4116.3,4116.2,0.7518]
[1761612231523,0.318,4116.3,4116.2,1.79176256]
[1761612231723,0.5481,4116.3,4116.2,1.79176256]
[1761612233527,0.77,4116.3,4116.2,1.48026256]
[1761612235321,0.77,4116.3,4116.2,1.79176256]
[1761612235525,1.32237479,4116.3,4116.2,1.79176256]
[1761612235831,0.77,4116.3,4116.2,1.79176256]
[1761612236531,0.5481,4116.3,4116.2,1.79176256]
[1761612236726,0.318,4116.4,4116.3,0.7518]
[1761612237032,0.318,4116.4,4115.5,3.9596]
[1761612237033,0.77,4115.6,4115.5,3.9596]
[1761612237728,0.5481,4115.6,4115.5,3.9596]
[1761612238134,0.5481,4115.6,4115.5,4.99956256]
[1761612238635,0.318,4115.6,4115.5,4.99956256]
[1761612240437,0.318,4115.9,4115.8,0.7518]
[1761612240637,0.318,4115.9,4115.8,2.83172512]
[1761612241135,0.318,4116.2,4116.1,0.4403]
[1761612241336,0.318,4116.4,4116.3,0.7518]
[1761612241534,0.318,4116.4,4116.3,1.79176256]
[1761612241835,0.5481,4116.4,4116.3,1.79176256]
[1761612242034,1.10019283,4116.4,4116.3,1.79176256]
[1761612242233,0.87009283,4116.4,4116.3,1.79176256]
[1761612242437,0.00179931,4116.5,4116.4,0.7518]
[1761612243532,0.00179931,4116.5,4116.4,1.18908]
[1761612243930,0.5481,4117.2,4117.1,0.7518]
[1761612244138,0.3307,4117.6,4117.5,0.7315]
[1761612244638,0.5571,4117.9,4117.8,0.7315]
[1761612244834,0.5571,4117.9,4117.8,1.77146256]
[1761612244835,0.3307,4117.9,4117.8,1.77146256]
[1761612245035,1.32377449,4117.9,4117.8,0.00196687]
[1761612249335,1.32377449,4117.9,4117.8,0.22576687]
[1761612251135,1.32377449,4117.9,4117.8,0.43666687]
[1761612251336,1.11057449,4117.9,4117.8,0.74776687]
[1761612251538,0.33280888,4117.9,4117.8,0.74776687]
[1761612252043,0.00210888,4117.9,4117.8,0.74776687]
[1761612253041,0.00210888,4117.9,4117.8,1.18489687]
[1761612253344,0.1312,4119.0,4118.2,0.3111]
[1761612253542,0.5571,4119.3,4119.2,0.4347]
[1761612253748,1.10790421,4119.3,4119.2,0.7458]
[1761612253939,0.3272,4119.3,4119.2,1.78576256]
[1761612254240,0.4626,4119.5,4119.4,0.7458]
[1761612254434,0.92231964,4119.5,4119.4,0.2238]
[1761612254641,0.7838,4119.3,4119.2,1.26376256]
[1761612255243,0.7838,4119.3,4119.2,1.47466256]
[1761612257745,0.3272,4119.3,4119.2,1.78576256]
[1761612258243,0.5571,4119.3,4119.2,1.78576256]
[1761612260148,0.7838,4119.3,4119.2,1.47466256]
[1761612262751,0.33031964,4119.5,4119.4,0.4347]
[1761612262951,0.3272,4120.4,4120.1,0.3111]
[1761612263251,0.5571,4120.4,4120.3,1.78576256]
[1761612264051,0.55896343,4120.4,4120.3,1.78576256]
[1761612264249,0.00186343,4120.4,4120.3,2.82572512]
[1761612265555,0.00186343,4120.4,4120.3,1.78576256]
[1761612266151,0.78566343,4120.4,4120.3,1.47466256]
[1761612266657,0.78566343,4120.4,4120.3,0.4347]
[1761612266954,0.78566343,4120.4,4120.3,1.47466256]
[1761612268550,0.55896343,4120.4,4120.3,1.78576256]
[1761612269655,0.32906343,4120.4,4120.3,1.78576256]
[1761612269849,0.3272,4120.8,4120.4,0.43684]
[1761612270150,0.4566,4121.5,4121.4,0.7698]
[1761612270348,1.0055436,4121.5,4121.4,2.01394616]
[1761612270950,1.00752111,4121.5,4121.4,2.0158412]
[1761612271354,0.00197751,4121.5,4121.4,2.0158412]
[1761612271954,0.00197751,4121.5,4121.4,3.69673736]
[1761612272854,0.5571,4122.2,4122.1,0.7698]
[1761612273048,1.10574073,4122.2,4122.1,2.01394616]
[1761612273856,1.10838801,4122.2,4122.1,2.01394616]
[1761612275048,1.33508801,4122.2,4122.1,2.01394616]
[1761612276255,0.78118801,4122.2,4122.1,2.01394616]
[1761612276452,0.00264728,4122.2,4122.1,2.01394616]
[1761612279054,0.1317,4122.0,4121.8,3.2078]
[1761612279252,0.7759,4121.8,4121.7,0.2199]
[1761612279454,1.32441789,4121.8,4121.7,0.2199]
[1761612279956,0.00264728,4122.2,4122.1,0.2199]
[1761612279957,0.44434728,4122.2,4122.1,0.2199]
[1761612280257,0.76985506,4122.2,4122.1,2.01104616]
[1761612281055,0.55135506,4122.2,4122.1,2.01104616]
[1761612286563,0.55135506,4122.2,4122.1,5.21884616]
[1761612287965,0.76985506,4122.2,4122.1,5.21884616]
[1761612288257,1.10405506,4122.2,4122.1,9.11684616]
[1761612288458,0.76985506,4122.2,4122.1,9.11684616]
[1761612288860,0.55135506,4122.2,4122.1,9.11684616]
[1761612291466,1.32725506,4122.2,4122.1,9.11684616]
[1761612291665,2.19913035,4122.2,4122.1,9.11684616]
[1761612292467,1.32725506,4122.2,4122.1,9.11684616]
[1761612293065,0.55135506,4122.2,4122.1,9.11684616]
[1761612293266,1.42057169,4122.2,4122.1,9.11684616]
[1761612293470,0.55135506,4122.2,4122.1,9.11684616]
[1761612296069,0.55135506,4122.2,4122.1,5.21884616]
[1761612296272,2.63623956,4122.2,4122.1,5.00664616]
[1761612296472,2.63623956,4122.2,4122.1,5.21884616]
[1761612298482,1.32725506,4122.2,4122.1,5.21884616]
[1761612299481,1.32725506,4122.2,4122.1,3.9747]
[1761612299684,1.32725506,4122.2,4122.1,1.46404616]
[1761612300377,3.07049192,4122.2,4122.1,1.24414616]
[1761612300570,1.32725506,4122.2,4122.1,1.24414616]
[1761612300776,0.9076,4122.0,4121.9,1.24414616]
[1761612300977,0.3342,4121.9,4121.5,1.24414616]
[1761612301178,0.7759,4121.6,4121.5,2.01104616]
[1761612301377,1.74552621,4122.0,4121.9,0.3348]
[1761612301677,0.55365228,4122.0,4121.9,2.01104616]
[1761612303980,0.00264728,4122.2,4122.1,0.7669]
[1761612304982,0.22064728,4122.2,4122.1,0.7669]
[1761612305185,0.56134728,4122.2,4122.1,0.7669]
[1761612307874,0.00264728,4122.2,4122.1,0.7669]
[1761612308283,0.22004728,4122.2,4122.1,0.7669]
[1761612308985,0.89472428,4122.8,4122.7,0.3405]
[1761612309283,1.30935372,4123.7,4123.5,0.576]
[1761612309477,3.7484,4123.9,4123.8,0.7823]
[1761612309784,3.9762,4123.9,4123.8,0.7823]
[1761612309982,3.97885143,4123.9,4123.8,0.7823]
[1761612310676,0.1254,4123.5,4123.3,3.2078]
[1761612310881,0.7684,4123.3,4123.2,1.24414616]
[1761612311074,0.7684,4123.3,4123.2,1.47444616]
[1761612311276,0.3232,4123.3,4123.2,2.02644616]
[1761612311482,0.4452,4123.8,4123.7,0.7823]
[1761612311681,0.4452,4123.8,4123.7,2.02644616]
[1761612312080,0.7684,4123.8,4123.7,2.02644616]
[1761612312278,0.7684,4123.8,4123.7,1.68594616]
[1761612313085,0.7684,4123.8,4123.7,0.4418]
[1761612313283,0.4452,4123.8,4123.5,1.47444616]
[1761612313482,0.4452,4123.6,4123.5,1.47444616]
[1761612313788,0.7684,4123.6,4123.5,1.81494616]
[1761612314587,0.7684,4123.6,4123.3,3.2078]
[1761612314888,3.21045143,4123.9,4122.7,3.4381]
[1761612314889,0.7684,4122.8,4122.7,3.4381]
[1761612315189,0.7684,4122.8,4122.7,3.9901]
[1761612315384,3.2078,4123.4,4122.7,3.9901]
[1761612315385,0.5406,4123.1,4122.8,0.3405]
[1761612315590,3.2078,4123.4,4123.3,0.7823]
[1761612315988,1.30574562,4123.4,4123.3,0.7823]
[1761612316786,0.98254562,4123.4,4123.3,0.7823]
[1761612316985,0.75474562,4123.4,4123.3,0.7823]
[1761612317180,0.53734562,4123.4,4123.3,0.7823]
[1761612320586,1.30574562,4123.4,4123.1,3.898]
[1761612320790,0.7684,4123.2,4123.1,3.898]
[1761612320994,1.30574562,4123.2,4123.1,4.1283]
[1761612322495,1.30574562,4123.2,4123.1,4.4688]
[1761612322695,1.30574562,4123.2,4123.1,4.6803]
[1761612326491,1.30574562,4123.2,4123.1,0.7823]
[1761612327593,0.5406,4123.6,4123.1,0.4418]
[1761612327896,0.52632074,4123.5,4123.4,2.02644616]
[1761612328394,0.77105143,4123.9,4123.8,0.7823]
[1761612328590,1.29735657,4123.9,4123.8,0.7823]
[1761612330596,1.29735657,4123.9,4123.8,2.02644616]
[1761612330897,0.74635657,4123.9,4123.8,2.02644616]
[1761612331795,0.52895657,4123.9,4123.8,5.02527306]
[1761612332001,0.00265143,4123.9,4123.8,5.02527306]
[1761612332599,0.5406,4124.9,4124.4,0.3405]
[1761612332802,0.5406,4124.9,4124.8,1.81747306]
[1761612333097,1.29473981,4124.9,4124.8,1.81747306]
[1761612333604,1.29674282,4124.9,4124.8,1.81973306]
[1761612337598,0.00200301,4124.9,4124.8,1.81973306]
[1761612341396,0.44040301,4124.9,4124.8,0.34276]
[1761612341605,0.75950301,4124.9,4124.8,1.37793306]
[1761612341802,1.28463503,4124.9,4124.8,1.60113306]
[1761612342102,1.28463503,4124.9,4124.8,1.81683306]
[1761612342295,0.52713503,4124.9,4124.8,1.81683306]
[1761612342801,0.74473503,4124.9,4124.8,1.81683306]
[1761612343005,1.06383503,4124.9,4124.8,1.81683306]
[1761612344503,0.52713503,4124.9,4124.8,1.81683306]
[1761612347205,1.06383503,4124.9,4124.8,1.81683306]
[1761612347804,1.28463503,4124.9,4124.8,0.00226]
[1761612348002,4.49243503,4124.9,4124.8,0.00226]
[1761612348205,1.28463503,4124.9,4124.8,0.56746]
[1761612348403,1.28463503,4124.9,4124.8,0.78316]
[1761612351910,0.75950301,4124.9,4124.8,0.78316]
[1761612355720,0.75950301,4124.9,4124.8,0.44116]
[1761612355908,0.75950301,4124.9,4124.8,0.78316]
[1761612357208,1.28498383,4124.9,4124.8,0.78316]
[1761612360716,1.28498383,4124.9,4124.8,0.00226]
[1761612361615,0.7575,4124.6,4124.5,3.10794897]
[1761612361821,3.6275076,4124.6,4124.5,2.18716944]
[1761612362014,0.7575,4123.3,4123.2,0.7809]
[1761612362209,1.28298082,4123.3,4123.2,2.85124612]
[1761612362516,0.74308082,4123.3,4123.2,2.85124612]
[1761612362714,1.28298082,4123.3,4123.2,2.85310604]
[1761612363016,1.28298082,4123.3,4123.2,1.03703298]
[1761612363216,1.28298082,4123.3,4123.2,1.81793298]
[1761612363422,0.7575,4123.3,4123.2,1.81793298]
[1761612363813,0.5367,4124.3,4124.2,0.7809]
[1761612364115,1.28340118,4124.3,4124.2,1.81607306]
[1761612364421,0.8971,4124.0,4123.9,0.562]
[1761612364617,1.42300118,4124.0,4123.9,0.7733]
[1761612365119,1.28850118,4124.0,4123.9,0.7733]
[1761612365321,0.75480118,4124.0,4123.9,0.7733]
[1761612365522,0.75480118,4124.0,4123.9,1.80847306]
[1761612365819,0.5549,4124.2,4124.1,0.7733]
[1761612366019,1.08060057,4124.2,4124.1,0.7733]
[1761612366817,1.28830057,4124.2,4124.1,0.7733]
[1761612373122,1.28830057,4124.2,4123.5,0.443]
[1761612373123,0.1254,4124.0,4123.5,0.443]
[1761612373328,0.7742,4123.3,4123.2,0.75875992]
[1761612373529,0.7742,4123.3,4123.2,1.79393298]
[1761612374629,0.7742,4123.3,4123.2,1.25773298]
[1761612375126,0.7742,4123.3,4123.2,1.57163298]
[1761612375522,0.7742,4123.3,4123.2,1.79393298]
[1761612379232,0.7742,4123.3,4123.2,5.69193298]
[1761612380829,0.7742,4123.3,4123.2,1.03703298]
[1761612381036,0.7742,4123.3,4123.2,0.00185992]
[1761612381338,0.7742,4122.2,4122.1,1.25587306]
[1761612381638,0.7742,4122.2,4122.1,1.56977306]
[1761612381836,0.3256,4122.1,4121.5,0.7569]
[1761612382129,0.3256,4121.2,4121.0,1.25587306]
[1761612382336,0.7742,4121.1,4121.0,1.25587306]
[1761612382537,1.30336947,4121.1,4121.0,1.25806788]
[1761612383234,1.30336947,4121.1,4121.0,1.57196788]
[1761612383434,0.7742,4121.1,4121.0,1.79426788]
[1761612391045,0.7742,4121.1,4121.0,1.03736788]
[1761612391739,0.7742,4121.1,4121.0,0.00219482]
[1761612392646,1.6929413,4121.1,4119.9,1.5582413]
[1761612392846,0.5448,4120.0,4119.9,0.7569]
[1761612393046,0.7742,4120.0,4119.9,0.7569]
[1761612393241,0.574,4120.0,4119.6,0.5346]
[1761612393448,0.7742,4119.8,4119.7,0.5346]
[1761612393747,0.3256,4120.1,4119.8,0.3139]
[1761612393943,0.7742,4120.1,4120.0,0.7569]
[1761612394544,0.2192,4120.1,4120.0,0.8819]
[1761612397141,0.7756,4119.8,4119.7,0.21436389]
[1761612397345,0.7756,4119.8,4119.7,0.00216389]
[1761612397550,0.7756,4119.8,4119.7,0.21436389]
[1761612399146,0.7756,4119.9,4119.8,0.2122]
[1761612399345,0.4447,4119.9,4119.7,0.21436389]
[1761612399644,0.4447,4119.9,4119.7,0.00216389]
[1761612400045,0.7756,4119.8,4119.7,0.00216389]
[1761612401348,0.549,4118.8,4118.7,2.0244413]
[1761612401549,0.7756,4118.7,4118.6,0.7801]
[1761612402354,0.7756,4118.7,4118.6,0.78240347]
[1761612402650,0.4564,4119.0,4118.6,0.78240347]
[1761612402847,0.549,4119.4,4119.3,0.7801]
[1761612403046,0.7756,4119.4,4119.3,2.0244413]
[1761612403242,0.7756,4119.4,4119.3,0.7801]
[1761612403553,0.7756,4119.4,4119.3,0.4367]
[1761612404655,0.7756,4119.4,4119.3,0.2122]
[1761612408950,0.1255,4120.0,4119.3,0.2122]
[1761612408951,0.7756,4119.7,4119.4,0.3434]
[1761612409157,0.7756,4119.7,4119.6,2.0244413]
[1761612409953,0.549,4120.5,4120.3,0.3434]
[1761612410156,0.2181,4120.5,4120.4,2.0244413]
[1761612410359,0.549,4120.7,4120.6,0.7801]
[1761612410556,1.07900722,4120.7,4120.6,0.7801]
[1761612411060,1.30558908,4120.7,4120.6,0.7801]
[1761612415960,1.30558908,4120.7,4120.6,0.5556]
[1761612416163,0.4447,4119.8,4119.7,0.5556]
[1761612416465,0.3309,4119.7,4119.5,1.4565413]
[1761612416667,0.7756,4119.6,4119.5,1.4565413]
[1761612416963,0.7756,4119.6,4119.5,1.7999413]
[1761612417162,0.7756,4119.6,4119.5,2.0244413]
[1761612417665,0.549,4119.6,4119.5,2.1494413]
[1761612418970,0.7756,4119.6,4119.5,2.0244413]
[1761612420469,0.7756,4119.6,4119.5,1.2443413]
[1761612420668,0.7756,4119.0,4118.9,0.5556]
[1761612420867,0.9011,4119.0,4118.9,1.4565413]
[1761612421564,1.43282976,4119.0,4118.9,1.4565413]
[1761612421759,0.86262976,4119.0,4118.9,2.0244413]
[1761612422070,0.7756,4118.8,4118.7,1.4565413]
[1761612422368,1.30732976,4118.8,4118.7,1.2443413]
[1761612428672,1.30732976,4118.8,4118.7,1.4663413]
[1761612428880,0.7756,4118.8,4118.7,2.0128413]
[1761612429371,0.7756,4118.8,4117.1,0.3629131]
[1761612429372,0.7866,4117.2,4117.1,0.3629131]
[1761612429568,0.4465,4116.3,4116.2,0.5568]
[1761612429764,0.3401,4116.2,4116.0,0.6919]
[1761612430071,0.2174,4115.8,4115.7,0.3348]
[1761612430369,0.2174,4115.8,4115.2,0.3348]
[1761612430370,0.3401,4115.5,4115.2,0.3348]
[1761612430568,0.2174,4115.3,4115.2,0.77105731]
[1761612430764,0.7866,4115.7,4115.6,0.5568]
[1761612430965,0.00202272,4115.8,4115.7,0.3348]
[1761612431166,0.00202272,4115.8,4115.7,0.7685]
[1761612432072,0.44852272,4115.8,4115.7,0.7685]
[1761612432275,0.3401,4115.7,4115.5,0.6919]
[1761612432476,0.4465,4115.3,4115.2,0.55935731]
[1761612432776,0.7866,4115.3,4115.2,0.00255731]
[1761612433270,0.7866,4115.3,4115.2,0.55935731]
[1761612433669,0.2174,4115.6,4115.5,0.1351]
[1761612433871,0.7866,4115.6,4115.5,0.9036]
[1761612434172,0.7866,4115.6,4115.5,0.7685]
[1761612435783,0.7866,4115.6,4115.5,0.5568]
[1761612437475,0.00202272,4115.8,4115.7,0.7685]
[1761612438375,0.21942272,4115.8,4115.7,0.7685]
[1761612438876,0.78862272,4115.8,4115.7,0.5568]
[1761612439081,0.4465,4115.6,4115.5,0.6919]
[1761612439280,0.7866,4115.6,4115.5,0.5568]
[1761612440177,0.4656,4115.5,4115.2,0.00255731]
[1761612440377,0.3401,4114.3,4114.0,0.6919]
[1761612440584,0.7866,4114.1,4114.0,0.5568]
[1761612440786,0.4465,4114.1,4114.0,0.5568]
[1761612440980,0.4465,4114.1,4114.0,0.6919]
[1761612441386,0.4465,4114.1,4114.0,0.90587743]
[1761612441887,0.2174,4114.1,4114.0,0.90587743]
[1761612442780,0.3401,4115.1,4114.1,0.3348]
[1761612443582,0.3401,4114.9,4114.1,0.3348]
[1761612446384,0.5575,4115.4,4114.9,0.3348]
[1761612446584,0.5575,4115.4,4114.5,0.1351]
[1761612446585,0.7866,4115.4,4115.3,0.5568]
[1761612446792,0.7866,4115.2,4115.1,0.3348]
[1761612447086,0.7866,4114.7,4114.6,0.5568]
[1761612448988,0.4465,4114.7,4114.6,0.7685]
[1761612449590,0.7866,4114.7,4114.6,0.7685]
[1761612449982,0.2174,4114.8,4114.7,0.3348]
[1761612450188,0.4465,4114.8,4114.7,0.7685]
[1761612450588,0.3401,4114.7,4114.5,0.4699]
[1761612450789,0.7866,4114.6,4114.5,0.6919]
[1761612451088,0.4465,4114.6,4114.5,0.9036]
[1761612451989,0.7866,4114.6,4114.5,0.9036]
[1761612452593,0.7866,4114.6,4114.5,0.5568]
[1761612453188,0.7866,4114.6,4114.5,0.9036]
[1761612453589,0.4465,4114.6,4114.5,0.9036]
[1761612453785,0.2174,4114.6,4114.5,0.9036]
[1761612454398,0.2241,4114.9,4114.8,0.786]
[1761612455192,0.4327,4114.9,4114.8,0.786]
[1761612455592,0.2241,4115.2,4115.1,0.2208]
[1761612455791,0.77385578,4115.2,4115.1,0.786]
[1761612456294,0.54975578,4115.2,4115.1,0.786]
[1761612456493,0.55312272,4115.8,4115.2,0.3439]
[1761612456692,1.30997516,4115.7,4115.6,0.5647]
[1761612457584,0.98297516,4115.7,4115.6,0.786]
[1761612459214,1.30997516,4115.7,4115.6,0.786]
[1761612459395,0.7597,4115.1,4115.0,0.913]
[1761612459595,2.06741306,4115.1,4115.0,0.913]
[1761612459797,2.61768822,4115.1,4115.0,0.913]
[1761612460298,2.29068822,4115.1,4115.0,0.913]
[1761612460697,2.61768822,4115.1,4115.0,0.913]
[1761612461794,1.30997516,4115.1,4115.0,0.5647]
[1761612462201,0.5511,4115.0,4114.7,0.3439]
[1761612462402,0.87241746,4114.8,4114.7,0.786]
[1761612462594,1.85539262,4114.8,4114.7,0.786]
[1761612462796,0.98297516,4114.8,4114.7,0.786]
[1761612463398,0.77437516,4114.8,4114.7,0.786]
[1761612463593,1.09652549,4114.8,4114.7,0.786]
[1761612463900,1.42270065,4114.8,4114.7,0.786]
[1761612464095,0.55027516,4114.8,4114.7,0.786]
[1761612464295,0.87242549,4114.9,4114.8,0.5647]
[1761612464602,1.42630081,4114.9,4114.8,0.4421]
[1761612465102,0.55387532,4114.9,4114.8,0.786]
[1761612467400,0.55387532,4114.9,4114.8,1.22345]
[1761612469200,0.55387532,4114.9,4114.8,0.786]
[1761612470106,0.55387532,4114.9,4114.8,1.22345]
[1761612471407,0.55387532,4114.9,4114.8,0.786]
[1761612471910,0.77797532,4114.9,4114.8,0.786]
[1761612472110,0.55387532,4114.9,4114.8,0.786]
[1761612473706,0.77797532,4114.9,4114.8,0.786]
[1761612474302,0.55387532,4114.9,4114.8,0.786]
[1761612475115,0.77797532,4114.9,4114.8,0.786]
[1761612475309,0.98657532,4114.9,4114.8,0.786]
[1761612477018,1.31357532,4114.9,4114.8,0.786]
[1761612477314,0.98657532,4114.9,4114.8,0.786]
[1761612479716,0.98657532,4114.9,4114.8,1.82589249]
[1761612480217,0.98657532,4114.9,4114.8,0.3439]
[1761612480218,1.31357532,4114.9,4114.8,0.3439]
[1761612480423,2.18600081,4114.9,4114.8,0.3439]
[1761612480932,2.18600081,4114.9,4114.0,4.03537743]
[1761612480933,0.7597,4114.3,4114.2,0.2208]
[1761612481222,1.31357532,4114.3,4114.2,0.2208]
[1761612481420,1.31357532,4114.3,4114.2,0.5647]
[1761612482023,0.98657532,4114.3,4114.2,0.786]
[1761612482315,1.31357532,4114.3,4114.2,1.82589249]
[1761612483218,1.31357532,4114.3,4114.2,0.5647]
[1761612484316,1.31357532,4114.3,4114.2,1.82589249]
[1761612484626,1.31357532,4114.3,4114.0,0.00227743]
[1761612484627,0.3283,4114.2,4114.0,0.00227743]
[1761612484817,2.69321977,4114.1,4114.0,0.00227743]
[1761612485120,3.24709509,4114.1,4114.0,0.00227743]
[1761612485313,2.37326781,4114.1,4114.0,0.00227743]
[1761612485719,1.33337532,4114.1,4114.0,0.00227743]
[1761612485920,1.33337532,4114.1,4114.0,0.34047743]
[1761612486122,1.33337532,4114.1,4114.0,0.56047743]
[1761612487619,1.33337532,4114.1,4114.0,0.34047743]
[1761612488120,1.33337532,4114.1,4114.0,0.00227743]
[1761612488318,0.4203,4113.1,4113.0,0.858]
[1761612489223,0.4203,4113.1,4113.0,0.86015315]
[1761612489824,0.19813705,4113.7,4113.1,0.3124]
[1761612490020,0.2126,4113.4,4113.3,1.77089249]
[1761612490221,0.4203,4113.4,4113.3,1.77089249]
[1761612490526,1.31318679,4113.4,4113.3,1.77089249]
[1761612491425,0.7593,4113.4,4113.3,1.77089249]
[1761612496031,0.7593,4113.4,4113.3,1.56229249]
[1761612497230,1.31218798,4113.4,4113.3,0.3124]
[1761612497429,0.7593,4113.1,4113.0,0.00215315]
[1761612498436,1.31213466,4113.1,4113.0,0.00215315]
[1761612500930,0.97313466,4113.1,4111.8,0.3124]
[1761612501128,0.2126,4111.9,4111.8,0.731]
[1761612501536,0.2126,4111.9,4111.8,0.5224]
[1761612501537,0.7593,4111.9,4111.8,0.5224]
[1761612501836,0.4203,4111.9,4111.8,1.77089249]
[1761612502039,0.42336899,4111.9,4111.8,1.77322936]
[1761612502240,1.80226148,4111.9,4111.8,0.00233687]
[1761612502429,0.4686,4110.5,4109.1,1.46630575]
[1761612502636,0.339,4110.5,4110.4,1.44789249]
[1761612502836,0.8889,4110.5,4109.0,0.1287]
[1761612503035,0.5516,4110.1,4110.0,1.44789249]
[1761612503332,0.5516,4110.1,4110.0,0.20609451]
[1761612503536,0.5516,4110.1,4110.0,0.41009451]
[1761612504534,0.339,4110.1,4110.0,0.61409451]
[1761612504843,0.339,4111.3,4111.2,0.612]
[1761612505035,0.5516,4111.3,4111.2,0.408]
[1761612505230,0.5516,4111.3,4110.9,4.26793585]
[1761612505231,0.7593,4111.3,4110.9,3.83007585]
[1761612505538,0.8889,4111.0,4110.9,0.408]
[1761612505734,0.6812,4110.5,4110.4,0.408]
[1761612506244,0.8889,4110.5,4110.4,0.408]
[1761612506443,0.4203,4110.1,4110.0,3.83217036]
[1761612506632,0.5516,4110.1,4110.0,0.61409451]
[1761612506837,0.339,4110.1,4110.0,0.61409451]
[1761612507032,0.339,4110.4,4110.1,0.204]
[1761612507335,0.339,4110.7,4110.6,0.612]
[1761612509137,0.339,4110.7,4110.4,3.83007585]
[1761612509138,0.4686,4111.0,4110.9,0.64186]
[1761612509334,0.5516,4111.4,4111.3,0.408]
[1761612509939,0.7593,4111.4,4111.3,0.408]
[1761612510343,0.5516,4111.4,4111.3,0.408]
[1761612510544,0.5516,4111.4,4111.3,0.612]